bitfinex/quotes_BTCUSD_20220304
["timestamp","ask_amount","ask_price","bid_price","bid_amount"]
[1646378440665,0.01507538,41354.0,41339.0,0.001]
[1646378440865,0.06745811,41348.0,41339.0,0.001]
[1646378441065,0.1908132,41346.0,41339.0,0.001]
[1646378441267,0.36047812,41346.0,41339.0,0.001]
[1646378441513,0.23390778,41340.0,41339.0,0.001]
[1646378441719,0.60084478,41340.0,41339.0,0.001]
[1646378442513,0.60084478,41340.0,41336.0,0.0013]
[1646378442514,0.366937,41339.0,41336.0,0.0013]
[1646378442913,0.463107,41339.0,41336.0,0.0013]
[1646378443113,0.09617,41339.0,41336.0,0.0013]
[1646378443514,0.31122041,41339.0,41336.0,0.0013]
[1646378445017,0.366937,41338.0,41336.0,0.0013]
[1646378445261,0.31122041,41339.0,41336.0,0.0013]
[1646378445462,0.366937,41338.0,41336.0,0.0013]
[1646378445861,0.39856982,41339.0,41336.0,0.0013]
[1646378446463,0.366937,41338.0,41336.0,0.0013]
[1646378446662,0.366937,41337.0,41336.0,0.0013]
[1646378447461,0.08582,41338.0,41336.0,0.0013]
[1646378447662,0.366937,41337.0,41336.0,0.0013]
[1646378451317,0.666937,41337.0,41336.0,0.0013]
[1646378452214,0.3,41337.0,41336.0,0.0013]
[1646378452663,0.666937,41337.0,41336.0,0.0013]
[1646378452864,0.3,41337.0,41336.0,0.0013]
[1646378453064,0.666937,41337.0,41336.0,0.0013]
[1646378454469,0.3,41337.0,41332.0,0.0017]
[1646378455568,0.2337091,41333.0,41332.0,0.0017]
[1646378455967,0.366937,41335.0,41332.0,0.0017]
[1646378456167,0.21505041,41339.0,41332.0,0.0017]
[1646378456413,0.001,41337.0,41332.0,0.0017]
[1646378456714,0.366937,41336.0,41332.0,0.0017]
[1646378456913,0.21693366,41334.0,41332.0,0.0017]
[1646378457115,0.366937,41336.0,41332.0,0.0017]
[1646378457513,0.3,41338.0,41332.0,0.0017]
[1646378457813,0.366937,41338.0,41332.0,0.0017]
[1646378458014,0.16966462,41343.0,41332.0,0.0017]
[1646378458015,0.01209,41343.0,41333.0,0.366937]
[1646378458214,0.3169,41344.0,41332.0,0.0017]
[1646378458215,0.1248,41344.0,41335.0,0.366937]
[1646378458414,0.22458553,41345.0,41333.0,0.366937]
[1646378458613,0.12104982,41349.0,41334.0,0.3]
[1646378458813,0.3736,41351.0,41334.0,0.05505348]
[1646378459013,0.15581701,41347.0,41339.0,0.16213687]
[1646378459814,0.40352252,41347.0,41339.0,0.16213687]
[1646378460262,0.23521727,41351.0,41339.0,0.16213687]
[1646378460462,0.06151727,41351.0,41340.0,0.3]
[1646378460667,0.001,41351.0,41340.0,0.3]
[1646378461264,0.19509954,41350.0,41340.0,0.3]
[1646378463567,0.1883,41356.0,41340.0,0.3]
[1646378463767,0.1883,41356.0,41340.0,0.295]
[1646378464420,0.25486998,41351.0,41340.0,0.295]
[1646378464621,0.25486998,41351.0,41340.0,0.3]
[1646378465020,0.16623492,41352.0,41339.0,0.21073687]
[1646378465220,0.16623492,41352.0,41340.0,0.3]
[1646378465421,0.16623492,41352.0,41340.0,0.295]
[1646378465821,0.16623492,41352.0,41340.0,0.3]
[1646378466021,0.18254828,41350.0,41340.0,0.3]
[1646378466222,0.16623492,41352.0,41339.0,0.21073687]
[1646378466423,0.27548166,41350.0,41339.0,0.21073687]
[1646378466624,0.27548166,41350.0,41340.0,0.3]
[1646378467025,0.16623492,41352.0,41346.0,0.19006101]
[1646378467226,0.16623492,41352.0,41346.0,0.18506101]
[1646378467426,0.16623492,41352.0,41341.0,0.1]
[1646378468472,0.21039129,41345.0,41341.0,0.367388]
[1646378468672,0.21039129,41345.0,41340.0,0.4]
[1646378469573,0.21039129,41345.0,41340.0,0.395]
[1646378469776,0.1756116,41354.0,41340.0,0.395]
[1646378470875,0.19951667,41350.0,41340.0,0.395]
[1646378473925,0.19951667,41350.0,41340.0,0.39]
[1646378475265,0.19951667,41350.0,41341.0,0.367388]
[1646378475462,0.19951667,41350.0,41340.0,0.1]
[1646378475863,0.19951667,41350.0,41339.0,0.0486]
[1646378476464,0.19951667,41350.0,41340.0,0.367388]
[1646378476664,0.19951667,41350.0,41339.0,0.0486]
[1646378478265,0.49951667,41350.0,41339.0,0.0486]
[1646378479516,0.19951667,41350.0,41339.0,0.0486]
[1646378479717,0.19951667,41350.0,41340.0,0.367388]
[1646378480718,0.19951667,41350.0,41339.0,0.0486]
[1646378481318,0.19951667,41350.0,41340.0,0.367388]
[1646378481718,0.19951667,41350.0,41341.0,0.3]
[1646378482120,0.1151,41354.0,41341.0,0.3]
[1646378482765,0.20354438,41352.0,41341.0,0.3]
[1646378482963,0.19202726,41351.0,41341.0,0.3]
[1646378483566,0.34769058,41350.0,41341.0,0.3]
[1646378484366,0.34769058,41351.0,41345.0,0.18001077]
[1646378484569,0.124786,41354.0,41346.0,0.667388]
[1646378484570,0.34769058,41353.0,41346.0,0.667388]
[1646378484767,0.009686,41354.0,41347.0,0.1]
[1646378485066,0.009686,41354.0,41348.0,0.415988]
[1646378485671,0.009686,41354.0,41350.0,0.367388]
[1646378485868,0.009686,41354.0,41351.0,0.0486]
[1646378486067,0.34769058,41356.0,41352.0,0.367388]
[1646378486266,0.34769058,41356.0,41353.0,0.0486]
[1646378487218,0.34769058,41357.0,41354.0,0.367388]
[1646378487417,0.50175784,41358.0,41354.0,0.415988]
[1646378487617,0.34769058,41358.0,41354.0,0.0486]
[1646378488417,0.34769058,41359.0,41354.0,0.0486]
[1646378489518,0.61880834,41359.0,41354.0,0.0486]
[1646378489919,0.34769058,41358.0,41354.0,0.0486]
[1646378490169,0.34769058,41359.0,41354.0,0.0486]
[1646378491271,0.21442544,41359.0,41354.0,0.0486]
[1646378493672,0.55487711,41360.0,41354.0,0.0486]
[1646378494115,0.34769058,41359.0,41354.0,0.0486]
[1646378494316,0.55487711,41360.0,41354.0,0.0486]
[1646378495115,0.28527952,41358.0,41354.0,0.0486]
[1646378495514,0.72826694,41360.0,41354.0,0.0486]
[1646378496119,0.34769058,41359.0,41354.0,0.0486]
[1646378497316,0.002,41361.0,41354.0,0.04848614]
[1646378497317,0.34969058,41361.0,41354.0,0.04848614]
[1646378497763,0.34769058,41361.0,41354.0,0.04848614]
[1646378498164,0.34769058,41360.0,41354.0,0.04848614]
[1646378499766,0.34769058,41361.0,41354.0,0.04848614]
[1646378499964,0.34769058,41362.0,41354.0,0.04848614]
[1646378500164,0.34769058,41361.0,41354.0,0.04848614]
[1646378501164,0.17356131,41359.0,41354.0,0.04848614]
[1646378501616,0.17356131,41359.0,41349.0,0.7367]
[1646378501817,0.20419291,41353.0,41349.0,0.0486]
[1646378502017,0.17356131,41359.0,41350.0,0.367388]
[1646378502221,0.34833403,41357.0,41349.0,0.0486]
[1646378502416,0.20044417,41350.0,41343.0,0.11509]
[1646378502617,0.20044417,41350.0,41344.0,0.367388]
[1646378502820,0.20044417,41350.0,41345.0,0.367388]
[1646378502821,0.16371111,41349.0,41345.0,0.367388]
[1646378503018,0.16371111,41349.0,41343.0,0.01509]
[1646378503218,0.20044417,41350.0,41343.0,0.01509]
[1646378503219,0.28373927,41346.0,41343.0,0.01509]
[1646378503418,0.20044417,41350.0,41344.0,0.367388]
[1646378503621,0.20044417,41350.0,41343.0,0.01509]
[1646378503820,0.20044417,41350.0,41345.0,0.367388]
[1646378504026,0.20044417,41350.0,41344.0,0.367388]
[1646378504419,0.269429,41347.0,41344.0,0.002]
[1646378504820,0.269429,41347.0,41345.0,0.367388]
[1646378505466,0.269429,41347.0,41344.0,0.002]
[1646378505766,0.269429,41347.0,41343.0,0.01509]
[1646378505767,0.269429,41347.0,41345.0,0.367388]
[1646378505965,0.20044417,41350.0,41345.0,0.367388]
[1646378506166,0.20044417,41350.0,41343.0,0.01209]
[1646378506367,0.34833403,41351.0,41344.0,0.367388]
[1646378506674,0.35033403,41351.0,41343.0,0.01209]
[1646378507266,0.35033403,41351.0,41344.0,0.367388]
[1646378507267,0.25552526,41350.0,41344.0,0.367388]
[1646378507466,0.25552526,41350.0,41348.0,0.15586637]
[1646378507668,0.25552526,41350.0,41343.0,0.01209]
[1646378508268,0.35033403,41351.0,41343.0,0.01209]
[1646378508468,0.35033403,41351.0,41342.0,0.004]
[1646378508669,0.34833403,41351.0,41349.0,0.15693164]
[1646378508923,0.34833403,41352.0,41349.0,0.15693164]
[1646378509326,0.34833403,41351.0,41342.0,0.004]
[1646378509725,0.34833403,41351.0,41343.0,0.367388]
[1646378509927,0.34833403,41351.0,41342.0,0.367388]
[1646378510429,0.58288631,41351.0,41347.0,0.21613375]
[1646378510827,0.23455228,41351.0,41347.0,0.21613375]
[1646378512230,0.58288631,41351.0,41347.0,0.21613375]
[1646378513965,0.23455228,41351.0,41347.0,0.21613375]
[1646378514967,0.23455228,41351.0,41344.0,0.002]
[1646378515167,0.58288631,41351.0,41344.0,0.002]
[1646378515668,0.58288631,41351.0,41340.0,0.5]
[1646378515867,0.58288631,41351.0,41341.0,0.367388]
[1646378516067,0.58288631,41351.0,41344.0,0.18407474]
[1646378517921,0.58288631,41351.0,41340.0,1.2367]
[1646378517922,0.18898987,41349.0,41340.0,0.5]
[1646378518120,0.18898987,41349.0,41341.0,0.367388]
[1646378519122,0.34833403,41350.0,41341.0,0.367388]
[1646378519320,0.58288631,41351.0,41341.0,0.367388]
[1646378520166,0.58288631,41351.0,41345.0,0.17649664]
[1646378520869,0.58288631,41351.0,41345.0,0.17641975]
[1646378521270,0.34833403,41350.0,41345.0,0.17641975]
[1646378523772,0.23455228,41351.0,41345.0,0.17641975]
[1646378527321,0.22955228,41351.0,41345.0,0.17641975]
[1646378528571,0.3,41355.0,41345.0,0.17641975]
[1646378528771,0.34843045,41350.0,41345.0,0.17641975]
[1646378528972,0.34843045,41350.0,41346.0,0.19938509]
[1646378529575,0.34843045,41350.0,41346.0,0.19875765]
[1646378530774,0.59767116,41351.0,41345.0,0.003]
[1646378531419,0.16600185,41350.0,41345.0,0.003]
[1646378531821,0.59767116,41351.0,41345.0,0.003]
[1646378532020,0.59767116,41351.0,41344.0,0.16226694]
[1646378532219,0.34843045,41350.0,41344.0,0.16226694]
[1646378532821,0.20190647,41348.0,41344.0,0.16226694]
[1646378533421,0.34843045,41349.0,41344.0,0.16226694]
[1646378534223,0.34843045,41350.0,41344.0,0.16226694]
[1646378534423,0.34843045,41349.0,41344.0,0.16226694]
[1646378536594,0.34843045,41349.0,41345.0,0.367388]
[1646378536796,0.59767116,41351.0,41345.0,0.367388]
[1646378536994,0.34843045,41350.0,41344.0,0.367388]
[1646378537194,0.59767116,41351.0,41344.0,0.367388]
[1646378537796,0.17605914,41349.0,41345.0,0.367388]
[1646378537995,0.59767116,41351.0,41346.0,0.367388]
[1646378538196,0.59767116,41351.0,41344.0,0.367388]
[1646378538395,0.34843045,41350.0,41343.0,0.21199009]
[1646378538595,0.34843045,41350.0,41345.0,0.003]
[1646378539235,0.34843045,41349.0,41345.0,0.003]
[1646378539434,0.54757757,41349.0,41345.0,0.003]
[1646378539833,0.34843045,41349.0,41340.0,1.2367]
[1646378540135,0.34843045,41349.0,41343.0,0.18200034]
[1646378542769,0.34843045,41349.0,41344.0,0.367388]
[1646378543573,0.34843045,41349.0,41343.0,0.18200034]
[1646378544072,0.34843045,41349.0,41344.0,0.367388]
[1646378544472,0.34843045,41349.0,41343.0,0.18200034]
[1646378545275,0.34843045,41346.0,41344.0,0.367388]
[1646378546521,0.34843045,41345.0,41344.0,0.367388]
[1646378546924,0.34843045,41345.0,41343.0,0.004]
[1646378546925,0.69229231,41345.0,41343.0,0.004]
[1646378547124,0.33851031,41344.0,41343.0,0.004]
[1646378547323,0.03851031,41344.0,41340.0,0.0203726]
[1646378547525,0.2007741,41342.0,41340.0,0.0203726]
[1646378547723,0.03851031,41341.0,41340.0,0.0203726]
[1646378549225,0.33851031,41341.0,41340.0,0.0203726]
[1646378551575,0.32490431,41341.0,41340.0,0.0203726]
[1646378551775,0.02490431,41341.0,41340.0,0.0203726]
[1646378551975,0.367388,41341.0,41340.0,0.0203726]
[1646378552275,0.02490431,41341.0,41340.0,0.0203726]
[1646378552476,0.28576361,41343.0,41340.0,0.0203726]
[1646378552477,0.02490431,41342.0,41340.0,0.0203726]
[1646378552677,0.34831095,41341.0,41340.0,0.0203726]
[1646378553479,0.30553964,41342.0,41340.0,0.3877606]
[1646378553676,0.007,41342.0,41340.0,0.3877606]
[1646378553924,0.34831095,41346.0,41340.0,0.3877606]
[1646378554526,0.1219,41349.0,41340.0,0.3877606]
[1646378554527,0.34831095,41347.0,41340.0,0.3877606]
[1646378554726,0.1249,41349.0,41340.0,0.3877606]
[1646378554727,0.34831095,41348.0,41340.0,0.3877606]
[1646378554926,0.35131095,41349.0,41340.0,0.3877606]
[1646378555126,0.35131095,41349.0,41347.0,0.367388]
[1646378555527,0.003,41349.0,41347.0,0.367388]
[1646378555727,0.003,41349.0,41348.0,0.55622366]
[1646378555932,0.35799795,41350.0,41349.0,0.367388]
[1646378556129,0.009687,41350.0,41349.0,0.367388]
[1646378562624,0.009687,41350.0,41349.0,0.42085667]
[1646378563124,0.009687,41350.0,41349.0,0.367388]
[1646378565174,0.61742976,41360.0,41349.0,0.367388]
[1646378565375,0.39809603,41361.0,41349.0,1.104088]
[1646378565577,0.1837,41362.0,41349.0,1.152688]
[1646378565875,0.1837,41362.0,41349.0,0.415988]
[1646378566075,0.24572476,41359.0,41349.0,0.415988]
[1646378566278,0.24572476,41359.0,41349.0,0.47286895]
[1646378567077,0.24572476,41359.0,41355.0,0.16686078]
[1646378567978,0.1735438,41360.0,41355.0,0.16686078]
[1646378568376,0.1735438,41360.0,41350.0,0.367388]
[1646378569426,0.26476448,41359.0,41352.0,0.15726483]
[1646378569725,0.002,41361.0,41352.0,0.15726483]
[1646378569726,0.002,41361.0,41353.0,0.367388]
[1646378569926,0.113,41363.0,41352.0,0.15726483]
[1646378570529,0.113,41363.0,41353.0,0.367388]
[1646378570728,0.28387373,41362.0,41352.0,0.15726483]
[1646378570929,0.28387373,41362.0,41352.0,0.15226483]
[1646378571129,0.28387373,41362.0,41352.0,0.88896483]
[1646378571427,0.28387373,41362.0,41352.0,0.15226483]
[1646378571632,0.01208,41366.0,41359.0,0.16289777]
[1646378571633,0.39809603,41366.0,41359.0,0.16289777]
[1646378571829,0.21986572,41370.0,41360.0,0.0486]
[1646378572429,0.03606572,41370.0,41360.0,0.0486]
[1646378572671,0.27752752,41364.0,41361.0,0.367388]
[1646378572876,0.17693434,41366.0,41360.0,0.0486]
[1646378573070,0.33606572,41370.0,41360.0,0.0486]
[1646378573272,0.03606572,41370.0,41360.0,0.0486]
[1646378573473,0.002,41371.0,41360.0,0.0486]
[1646378573870,0.51479603,41372.0,41360.0,0.0486]
[1646378574072,0.20729138,41370.0,41360.0,0.0486]
[1646378575473,0.23216472,41363.0,41360.0,0.0486]
[1646378575875,0.23216472,41363.0,41361.0,0.367388]
[1646378576076,0.3,41369.0,41360.0,0.0486]
[1646378576273,0.16463992,41365.0,41360.0,0.0486]
[1646378576828,0.16218512,41362.0,41361.0,0.367388]
[1646378577023,0.23626978,41370.0,41360.0,0.0486]
[1646378577223,0.06049342,41366.0,41360.0,0.0486]
[1646378577423,0.009683,41366.0,41360.0,0.0486]
[1646378577624,0.3,41369.0,41360.0,0.0486]
[1646378578124,0.20788708,41364.0,41360.0,0.0486]
[1646378578324,0.49023908,41364.0,41360.0,0.0486]
[1646378578524,0.48023908,41364.0,41360.0,0.0486]
[1646378579024,0.48023908,41364.0,41361.0,0.367388]
[1646378579828,0.48023908,41364.0,41362.0,0.367388]
[1646378580028,0.48023908,41364.0,41360.0,0.367388]
[1646378580683,0.48023908,41364.0,41359.0,0.001]
[1646378582283,0.302,41370.0,41360.0,0.367388]
[1646378582481,0.002,41370.0,41359.0,0.001]
[1646378582984,0.36048693,41371.0,41356.0,0.0486]
[1646378583183,0.26681295,41364.0,41356.0,0.0486]
[1646378583383,0.42654255,41368.0,41357.0,0.367388]
[1646378583583,0.42654255,41368.0,41356.0,0.0486]
[1646378584926,0.20431019,41362.0,41357.0,0.367388]
[1646378586123,0.42654255,41368.0,41357.0,0.367388]
[1646378586323,0.42654255,41368.0,41354.0,0.2066564]
[1646378587226,0.25066075,41363.0,41354.0,0.2066564]
[1646378587425,0.25066075,41363.0,41355.0,0.367388]
[1646378587676,0.42654255,41368.0,41361.0,0.18763666]
[1646378587677,0.21451394,41368.0,41361.0,0.18763666]
[1646378588477,0.3,41371.0,41361.0,0.18763666]
[1646378588676,0.206328,41369.0,41361.0,0.18763666]
[1646378591819,0.206328,41369.0,41362.0,0.367388]
[1646378592221,0.3,41371.0,41363.0,0.1]
[1646378592424,0.21393398,41372.0,41363.0,0.1]
[1646378592620,0.21393398,41372.0,41361.0,0.18763666]
[1646378593021,0.009683,41370.0,41358.0,0.1]
[1646378593223,0.009683,41370.0,41357.0,0.1195]
[1646378593224,0.07017165,41370.0,41357.0,0.1195]
[1646378593622,0.06048865,41370.0,41357.0,0.1195]
[1646378593821,0.21858443,41362.0,41357.0,0.1195]
[1646378594021,0.23327724,41359.0,41357.0,0.1195]
[1646378594222,0.23327724,41359.0,41358.0,0.02491417]
[1646378595479,0.002,41360.0,41358.0,0.39230217]
[1646378595775,0.002,41360.0,41359.0,0.02491417]
[1646378596379,0.002,41360.0,41359.0,0.39230217]
[1646378596979,0.002,41360.0,41359.0,0.02491417]
[1646378597180,0.002,41362.0,41359.0,0.02491417]
[1646378597380,0.002,41362.0,41361.0,0.02491417]
[1646378597583,0.002,41362.0,41361.0,0.39230217]
[1646378597784,0.002,41362.0,41361.0,0.367388]
[1646378598180,0.20367626,41370.0,41361.0,0.02491417]
[1646378598381,0.20367626,41370.0,41357.0,0.367388]
[1646378598385,0.23886225,41364.0,41357.0,0.367388]
[1646378599229,0.23886225,41364.0,41345.0,0.9337]
[1646378599430,0.3,41366.0,41347.0,0.367388]
[1646378599431,0.24380863,41357.0,41347.0,0.367388]
[1646378599629,0.24380863,41357.0,41351.0,0.02491417]
[1646378599828,0.24380863,41357.0,41355.0,0.02491417]
[1646378600028,0.24380863,41357.0,41356.0,0.02491417]
[1646378600628,0.309685,41362.0,41356.0,0.39230217]
[1646378600830,0.309685,41362.0,41355.0,0.19929812]
[1646378600831,0.003,41359.0,41355.0,0.19929812]
[1646378601129,0.003,41359.0,41358.0,0.02485112]
[1646378601731,0.003,41359.0,41358.0,0.39223912]
[1646378602031,0.3,41368.0,41358.0,0.02485112]
[1646378602229,0.3,41368.0,41355.0,0.19929812]
[1646378602431,0.3,41368.0,41356.0,0.367388]
[1646378602695,0.3,41368.0,41357.0,0.1]
[1646378602899,0.22253807,41365.0,41364.0,0.17484804]
[1646378603095,0.3,41368.0,41364.0,0.17484804]
[1646378603297,0.03575702,41372.0,41364.0,0.17484804]
[1646378603298,0.3,41371.0,41364.0,0.17484804]
[1646378603996,0.18045544,41368.0,41364.0,0.17484804]
[1646378604200,0.3,41371.0,41364.0,0.17484804]
[1646378604500,0.22340251,41367.0,41364.0,0.17484804]
[1646378604697,0.3,41371.0,41365.0,0.367388]
[1646378604898,0.03575702,41372.0,41364.0,0.17484804]
[1646378605097,0.16931447,41368.0,41364.0,0.17484804]
[1646378606098,0.16931447,41368.0,41353.0,0.33019512]
[1646378606099,0.92630532,41367.0,41346.0,0.060487]
[1646378606299,0.02413,41363.0,41341.0,0.6216]
[1646378606530,0.1142,41362.0,41343.0,0.5]
[1646378606730,0.1142,41362.0,41346.0,0.004]
[1646378607133,0.23405209,41352.0,41349.0,0.21066665]
[1646378607331,0.19736767,41357.0,41349.0,0.21066665]
[1646378607533,0.19736767,41357.0,41350.0,0.367388]
[1646378607931,0.19736767,41357.0,41349.0,0.21066665]
[1646378608133,0.1142,41362.0,41349.0,0.21066665]
[1646378608134,0.1142,41362.0,41350.0,0.367388]
[1646378608432,0.1142,41362.0,41349.0,0.21066665]
[1646378608832,0.1142,41362.0,41349.0,0.21266665]
[1646378609031,0.27112139,41360.0,41350.0,0.367388]
[1646378609232,0.27112139,41360.0,41358.0,0.20616009]
[1646378609431,0.88823362,41366.0,41358.0,0.20616009]
[1646378609432,0.39843726,41366.0,41358.0,0.20616009]
[1646378609633,0.39943726,41368.0,41358.0,0.20616009]
[1646378609934,0.001,41368.0,41358.0,0.20616009]
[1646378610177,0.44843726,41370.0,41358.0,0.20616009]
[1646378610381,0.24496685,41365.0,41358.0,0.20616009]
[1646378610586,0.39843726,41369.0,41358.0,0.20616009]
[1646378610783,0.39843726,41370.0,41360.0,0.367388]
[1646378610978,0.39843726,41370.0,41358.0,0.20616009]
[1646378611583,0.55793885,41370.0,41358.0,0.20616009]
[1646378612881,0.15554564,41367.0,41358.0,0.20616009]
[1646378613284,0.15554564,41367.0,41359.0,0.367388]
[1646378613682,0.55793885,41370.0,41358.0,0.20616009]
[1646378613933,0.24665246,41365.0,41358.0,0.20616009]
[1646378614133,0.55793885,41370.0,41359.0,0.367388]
[1646378614334,0.55793885,41370.0,41358.0,0.20616009]
[1646378614834,0.16250026,41368.0,41359.0,0.367388]
[1646378615034,0.55793885,41370.0,41365.0,0.18163311]
[1646378615235,0.15950159,41370.0,41365.0,0.18163311]
[1646378616436,0.15950159,41370.0,41358.0,0.4131518]
[1646378616635,0.15950159,41370.0,41361.0,0.05934697]
[1646378616835,0.15950159,41370.0,41358.0,0.0486]
[1646378616836,0.15950159,41370.0,41362.0,0.367388]
[1646378617036,0.37126296,41370.0,41360.0,0.1]
[1646378617237,0.37126296,41370.0,41361.0,0.367388]
[1646378617679,0.37126296,41370.0,41362.0,0.1]
[1646378617882,0.37126296,41370.0,41360.0,0.18942268]
[1646378617883,0.1178,41373.0,41361.0,0.367388]
[1646378618386,0.36048564,41372.0,41358.0,0.0486]
[1646378618582,0.7589229,41372.0,41358.0,0.0486]
[1646378618781,0.17358194,41369.0,41361.0,0.05689259]
[1646378618982,0.7589229,41372.0,41361.0,0.05689259]
[1646378619184,0.7589229,41372.0,41365.0,0.20236199]
[1646378619185,0.3,41372.0,41365.0,0.20236199]
[1646378619382,0.28677267,41370.0,41365.0,0.20236199]
[1646378621945,0.002,41372.0,41361.0,0.05689259]
[1646378622347,0.207961,41370.0,41361.0,0.05689259]
[1646378622545,0.207961,41370.0,41362.0,0.367388]
[1646378622745,0.002,41372.0,41361.0,0.05689259]
[1646378622946,0.15775096,41373.0,41362.0,0.367388]
[1646378623346,0.55618822,41373.0,41361.0,0.21722505]
[1646378623549,0.15775096,41373.0,41361.0,0.21722505]
[1646378623846,0.16919022,41372.0,41361.0,0.21722505]
[1646378624046,0.16919022,41372.0,41362.0,0.367388]
[1646378624246,0.15775096,41373.0,41368.0,0.18340337]
[1646378624447,0.57893726,41375.0,41368.0,0.18340337]
[1646378624646,0.39843726,41376.0,41368.0,0.18340337]
[1646378625478,0.24977412,41372.0,41363.0,0.2188]
[1646378625677,0.24977412,41372.0,41364.0,0.367388]
[1646378626079,0.39843726,41376.0,41366.0,0.367388]
[1646378626277,0.19415429,41375.0,41367.0,0.1]
[1646378626479,0.21299696,41374.0,41366.0,0.17119437]
[1646378627580,0.19968559,41373.0,41366.0,0.17119437]
[1646378627780,0.28970667,41371.0,41367.0,0.367388]
[1646378628180,0.21299696,41374.0,41367.0,0.367388]
[1646378628380,0.21299696,41374.0,41366.0,0.17119437]
[1646378628585,0.21299696,41374.0,41368.0,0.367388]
[1646378629034,0.85033623,41378.0,41368.0,0.367388]
[1646378629241,0.16671391,41377.0,41366.0,0.17219437]
[1646378629432,0.23517251,41375.0,41368.0,0.367388]
[1646378629833,0.23517251,41375.0,41367.0,0.367388]
[1646378630033,0.19699434,41373.0,41367.0,0.367388]
[1646378631034,0.19699434,41373.0,41367.0,0.36727504]
[1646378632235,0.46671391,41377.0,41367.0,0.36727504]
[1646378632537,0.25238281,41376.0,41367.0,0.36727504]
[1646378632979,0.85033623,41378.0,41374.0,0.06144387]
[1646378633180,0.39843726,41381.0,41367.0,0.0486]
[1646378633379,0.15428539,41379.0,41368.0,0.367211]
[1646378633578,0.15428539,41379.0,41369.0,0.0486]
[1646378633782,0.15428539,41379.0,41370.0,0.367211]
[1646378633980,0.15428539,41379.0,41371.0,0.0486]
[1646378634280,0.43057439,41379.0,41372.0,0.367211]
[1646378634480,0.1248,41384.0,41375.0,0.367211]
[1646378634481,0.52323726,41384.0,41375.0,0.367211]
[1646378634680,0.1248,41384.0,41376.0,0.0486]
[1646378634880,0.1248,41384.0,41377.0,0.367211]
[1646378635079,0.0011,41384.0,41377.0,0.367211]
[1646378635479,0.21422262,41383.0,41377.0,0.367211]
[1646378637929,0.18299672,41384.0,41377.0,0.367211]
[1646378638528,0.0011,41384.0,41377.0,0.367211]
[1646378640200,0.24773823,41383.0,41377.0,0.367211]
[1646378640797,0.16956941,41378.0,41377.0,0.367211]
[1646378640999,0.24773823,41383.0,41377.0,0.367211]
[1646378641897,0.15522246,41382.0,41377.0,0.367211]
[1646378642297,0.15522246,41382.0,41379.0,0.06033191]
[1646378642496,0.15522246,41382.0,41380.0,0.367211]
[1646378643298,0.001,41383.0,41380.0,0.367211]
[1646378644152,0.0011,41384.0,41380.0,0.367211]
[1646378644449,0.44861736,41384.0,41380.0,0.367211]
[1646378644750,0.44861736,41384.0,41378.0,0.367211]
[1646378646154,0.0011,41384.0,41378.0,0.367211]
[1646378647155,0.0011,41384.0,41381.0,0.19315866]
[1646378647556,0.0011,41384.0,41382.0,0.667211]
[1646378647791,0.0011,41384.0,41383.0,0.667211]
[1646378648392,0.0011,41384.0,41383.0,0.715811]
[1646378648892,0.0011,41384.0,41383.0,0.415811]
[1646378651540,0.0011,41384.0,41382.0,0.001]
[1646378652235,0.0011,41384.0,41375.0,0.43258543]
[1646378652535,0.22617574,41388.0,41375.0,0.43258543]
[1646378652734,0.15831027,41382.0,41377.0,0.367211]
[1646378653134,0.60595238,41390.0,41376.0,0.1]
[1646378653735,0.60595238,41390.0,41374.0,0.33585604]
[1646378653736,0.25462029,41384.0,41375.0,0.1]
[1646378653935,0.25462029,41384.0,41375.0,0.1620935]
[1646378654337,0.25462029,41384.0,41375.0,0.1]
[1646378655179,0.25462029,41384.0,41376.0,0.367211]
[1646378655380,0.21911081,41385.0,41375.0,0.1]
[1646378655577,0.21911081,41385.0,41376.0,0.367211]
[1646378655976,0.21911081,41385.0,41377.0,0.06698699]
[1646378656179,0.13438,41392.0,41378.0,0.367211]
[1646378656378,0.13438,41392.0,41380.0,0.367211]
[1646378656779,0.1223,41392.0,41380.0,0.367211]
[1646378657182,0.52908966,41392.0,41384.0,0.2190531]
[1646378657378,0.40678966,41392.0,41384.0,0.2190531]
[1646378658179,0.20946483,41392.0,41384.0,0.2190531]
[1646378658780,0.05,41396.0,41384.0,0.2190531]
[1646378658781,0.05,41396.0,41385.0,0.367211]
[1646378659031,0.18791931,41394.0,41385.0,0.3]
[1646378659235,0.002,41397.0,41384.0,0.2190531]
[1646378659430,0.21072099,41394.0,41385.0,0.3]
[1646378661133,0.15618698,41393.0,41385.0,0.3]
[1646378661431,0.21072099,41394.0,41385.0,0.3]
[1646378662435,0.16898936,41395.0,41385.0,0.4]
[1646378663486,0.1234,41398.0,41385.0,0.4]
[1646378663684,0.1234,41398.0,41385.0,0.39988582]
[1646378663883,0.1234,41398.0,41386.0,0.367211]
[1646378664087,0.1234,41398.0,41387.0,0.367211]
[1646378664383,0.1234,41398.0,41389.0,0.367211]
[1646378664582,0.15745725,41397.0,41389.0,0.367211]
[1646378665583,0.15745725,41397.0,41388.0,0.301]
[1646378665784,0.15745725,41397.0,41389.0,0.1]
[1646378666429,0.21349508,41396.0,41389.0,0.1]
[1646378666630,0.15745725,41397.0,41389.0,0.1]
[1646378666829,0.15745725,41397.0,41388.0,0.3]
[1646378667031,0.15745725,41397.0,41391.0,0.19045594]
[1646378667232,0.63434522,41399.0,41392.0,0.667211]
[1646378667233,0.2361,41399.0,41392.0,0.667211]
[1646378667432,0.2361,41399.0,41393.0,0.367211]
[1646378667735,0.2361,41399.0,41394.0,0.53177565]
[1646378667931,0.2361,41399.0,41394.0,0.467211]
[1646378668132,0.20228895,41398.0,41394.0,0.467211]
[1646378668937,0.2361,41399.0,41394.0,0.467211]
[1646378669136,0.001,41403.0,41394.0,0.467211]
[1646378669337,0.001,41403.0,41394.0,0.1]
[1646378669737,0.001,41403.0,41392.0,0.4]
[1646378669937,0.44755823,41400.0,41394.0,0.07274244]
[1646378670179,0.19964408,41400.0,41396.0,0.367211]
[1646378670580,0.19964408,41400.0,41397.0,0.367211]
[1646378670782,0.19964408,41400.0,41396.0,0.367211]